{"text_format":"2","workbook":"xlsx","n_sheets":2,"sheets":["Záradék","Tételes"],"not_rendered":{"charts":0,"images":0,"macros":0,"external_links":0,"defined_names":0,"comments":0,"pivot_tables":0},"unopened":[],"bounds":{"document_bytes":16777216,"sheet_cells":100000,"run_cost":"one","rows_first":2000,"rows_last":500,"rows_between":2000,"halvings":0,"cell_chars":16384,"cell_head_chars":4096},"cells_cut":0,"cells_raw":0,"read":"whole","date_system":"1900"}

{"sheet":"Záradék","index":0,"n_rows":21,"n_cols":4,"rows_kept":21,"cut":false,"hidden":false,"merged":[[23,0,24,3],[17,2,17,3],[11,0,11,3],[14,0,14,3],[18,2,18,3],[19,2,19,3],[20,2,20,3]]}
["Cég:"]
["Cím:"]
["Mobiltelefon: "]
["Adószám: "]
["Cégjegyzékszám: "]
["Bankszámla:"]
[]
[null,null,"                                       "]
["SZTE Sportközpont 6725 Szeged, Hattyas u. 10.",null,"Kelt: "]
[]
[]
["A munka leírása: Szeged, Hattyas u. 10. szám alatt SZTE Sportközpont területén lévő kazánház tetőszigetelése"]
["                                                                              "]
[]
["Költségvetés főösszesítő"]
["Megnevezés",null,"Anyagköltség","Díjköltség"]
["1. Építmény közvetlen költségei",null,{"$f":"Tételes!G13","v":0},{"$f":"Tételes!H13","v":0}]
["2. Tartalékkeret(5%)",null,{"$f":"ROUND(C17+D17,0)*0.05","v":0}]
["3.1 ÁFA vetítési alap",null,{"$f":"ROUND(C17+D17,0)+C18","v":0}]
["3.2 ÁFA",0.27,{"$f":"ROUND(C19*B20,0)","v":0}]
["4 A munka ára (HUF)",null,{"$f":"ROUND(C20+C19,0)","v":0}]

{"sheet":"Tételes","index":1,"n_rows":15,"n_cols":8,"rows_kept":15,"cut":false,"hidden":false,"merged":[[14,2,14,4],[14,6,14,7]]}
["Ssz.","Tétel szövege","Menny.","Egység","Anyag egységár","Díj egységre","Anyag összesen","Díj összesen"]
[1,"Tetőfelület takarítása, kavics, moha tetőről történő letermelése és elszállítása.",188.4,"m2",null,null,{"$f":"C2*E2","v":0},{"$f":"C2*F2","v":0}]
[2,"Vízszintes felület szigetelése: Büsscher Hoffmann KVD E 55 K SBS  modifikált bitumenes vastaglemez 5,2 mm vastagságú  nagy szilárdságú poliészterfátyol hordozórétegű szigetelés fektetése az aljzathoz sávos ragasztással  lángheggesztéssel rögzítve ",188.4,"m2",null,null,{"$f":"C3*E3","v":0},{"$f":"C3*F3","v":0}]
[3,"Régi ereszszegély bontása",69.2,"fm      ",null,null,0,0]
[4,"Attika szegély szigetelése Büsscher Hoffmann KVD E 55 K rendkívül jó minőségű palazúzalékos lemezzel teljes felületen lángolvasztásos rögzítéssel",17.600000000000001,"m2",null,null,0,0]
[5,"Ereszszegély szerelés lágyfedésű tetőhöz, horganyzott lemezből, 20-33 cm kiterített szélességgel. Ereszszegély  0,5 mm H, 33 cm kit.szél. ",69.2,"fm      ",null,null,0,0]
[6,"Csatorna és tartóvasak beépítése tető széleinek lezárásához. Natúr színben, horganyzott lemezből",42.8,"fm      ",null,null,0,0]
[7,"A lábazati falról a meglévő régi szigetelés elvágása, eltávolítása.",8.8000000000000007,"fm      ",null,null,0,0]
[8,"Felépítményi lábazatok szigetelése, sáverősítés készítésével  Záró réteg készítése Büsscher Hoffmann KVD E 55 K  rendkívül jó minőségű palazúzalékos lemezzel teljes felületen lángolvasztásos rögzítéssel",8.8000000000000007,"fm      ",null,null,0,0]
[9,"Felépítményi lábazatok mechanikai rögzítése.",8.8000000000000007,"fm      ",null,null,0,0]
[10,"Régi páraszellőző kibontása, új műanyag páraszellőzők beépítése",10,"db",null,null,0,0]
[11,"Szemét, törmelék elszállítása lerakóhelyi díjjal együtt",1,"db",null,null,0,0]
[null,"Összesen",{"$nulls":4},{"$f":"SUM(G2:G12)","v":0},{"$f":"SUM(H2:H12)","v":0}]
[]
[null,null,"Össz nettó:",null,null,null,{"$f":"SUM(G13:H13)","v":0}]